fUSD/lending_fUSD_20251221
["ID","MTS","AMOUNT","RATE_DAILY","PERIOD"]
[399331957,1766310646720,-150.0,0.00015579,2]
[399331958,1766310646730,-1009.0,0.000156,2]
[399331959,1766310646739,-150.0,0.00015611,2]
[399331960,1766310646749,-150.0,0.00015611,2]
[399331961,1766310646758,-150.0,0.00015613,2]
[399331962,1766310646767,-150.0,0.00015627,2]
[399331963,1766310646777,-150.0,0.00015627,2]
[399331964,1766310646786,-150.0,0.00015642,2]
[399331965,1766310646796,-150.0,0.00015649,2]
[399331966,1766310646808,-150.0,0.00015652,2]
[399331967,1766310646817,-150.0,0.00015676,2]
[399331968,1766310646827,-3834.65811313,0.00015679,2]
[399331969,1766310646837,-151.0,0.00015679,2]
[399331970,1766310646847,-151.0,0.00015679,2]
[399331971,1766310646857,-151.0,0.00015679,2]
[399331972,1766310646869,-150.0,0.00015685,2]
[399331973,1766310646879,-150.0,0.00015692,2]
[399331974,1766310646888,-150.0,0.00015692,2]
[399331975,1766310646898,-227.01,0.000157,2]
[399331976,1766310646908,-150.0,0.00015712,2]
[399331977,1766310646918,-150.0,0.00015712,2]
[399331978,1766310646927,-150.0,0.00015712,2]
[399331979,1766310646937,-150.0,0.00015721,2]
[399331980,1766310646946,-150.0,0.00015724,2]
[399331981,1766310646956,-1473.89,0.00015727,2]
[399331982,1766310646965,-150.0,0.00015733,2]
[399331983,1766310646975,-151.0,0.00015743,2]
[399331984,1766310646985,-209.40437684,0.00015743,2]
[399331985,1766310646994,-574.12855637,0.00015743,2]
[399331986,1766310647005,-161.14216565,0.00015743,2]
[399331987,1766310647014,-150.0,0.00015758,2]
[399331988,1766310647023,-150.0,0.00015773,2]
[399331989,1766310647033,-150.0,0.00015773,2]
[399331990,1766310647044,-150.0,0.00015773,2]
[399331991,1766310647054,-150.0,0.00015773,2]
[399331992,1766310647063,-223.98456841,0.00015774,2]
[399331993,1766310647073,-150.0,0.00015783,2]
[399331994,1766310647087,-150.0,0.00015794,2]
[399331995,1766310647096,-150.0,0.00015797,2]
[399331996,1766310647105,-176.7,0.00015809,2]
[399331997,1766310647114,-150.0,0.00015813,2]
[399331998,1766310647124,-150.0,0.00015822,2]
[399331999,1766310647134,-150.0,0.0001583,2]
[399332000,1766310647143,-500.0,0.00015839,2]
[399332001,1766310647153,-500.0,0.00015839,2]
[399332002,1766310647163,-500.0,0.00015839,2]
[399332003,1766310647172,-152.067628,0.0001584,2]
[399332004,1766310647182,-151.0,0.0001584,2]
[399332005,1766310647192,-151.0,0.0001584,2]
[399332006,1766310647201,-151.0,0.0001584,2]
[399332007,1766310647211,-151.0,0.0001584,2]
[399332008,1766310647221,-7000.0,0.0001584,2]
[399332009,1766310647233,-151.0,0.0001584,2]
[399332010,1766310647243,-10955.28690622,0.00015847,2]
[399332011,1766310647253,-150.0,0.00015854,2]
[399332012,1766310647263,-150.0,0.00015854,2]
[399332013,1766310647273,-150.0,0.00015854,2]
[399332014,1766310647283,-150.0,0.00015854,2]
[399332015,1766310647293,-150.0,0.00015854,2]
[399332016,1766310647303,-150.0,0.00015866,2]
[399332017,1766310647313,-150.0,0.0001587,2]
[399332018,1766310647322,-200.0,0.00015871,2]
[399332019,1766310647332,-150.0,0.00015882,2]
[399332020,1766310647341,-151.32,0.00015883,2]
[399332021,1766310647350,-19860.72422432,0.0001589,2]
[399332022,1766310647360,-150.0,0.00015894,2]
[399332023,1766310647370,-736.0,0.00015899,2]
[399332024,1766310647380,-10000.0,0.000159,2]
[399332025,1766310647389,-170.00069611,0.000159,2]
[399332026,1766310647398,-1172.42466186,0.000159,2]
[399332027,1766310647408,-151.0,0.000159,2]
[399332028,1766310647417,-151.0,0.000159,2]
[399332029,1766310647427,-151.0,0.000159,2]
[399332030,1766310647436,-788.26081965,0.000159,2]
[399332031,1766310647445,-150.0,0.00015902,2]
[399332032,1766310647454,-150.0,0.00015919,2]
[399332033,1766310647464,-150.0,0.00015925,2]
[399332034,1766310647473,-150.0,0.00015935,2]
[399332035,1766310647482,-150.0,0.00015935,2]
[399332036,1766310647492,-150.0,0.00015938,2]
[399332037,1766310647501,-362.0,0.00015945,2]
[399332038,1766310647511,-150.0,0.00015967,2]
[399332039,1766310647519,-150.0,0.00015967,2]
[399332040,1766310647529,-500.55342912,0.00015973,2]
[399332041,1766310647538,-570.29356194,0.00015973,2]
[399332042,1766310647548,-500.82535785,0.00015973,2]
[399332043,1766310647557,-162.2682575,0.00015973,2]
[399332044,1766310647567,-500.88956143,0.00015973,2]
[399332045,1766310647577,-501.04177666,0.00015973,2]
[399332046,1766310647588,-500.0,0.00015973,2]
[399332047,1766310647597,-162.38378184,0.00015973,2]
[399332048,1766310647606,-500.95609969,0.00015973,2]
[399332049,1766310647616,-501.03374928,0.00015973,2]
[399332050,1766310647625,-500.34372301,0.00015973,2]
[399332051,1766310647634,-518.86476464,0.00015973,2]
[399332052,1766310647643,-500.47443561,0.00015973,2]
[399332053,1766310647652,-330.74959628,0.00015973,2]
[399332054,1766310647662,-503.05961393,0.00015973,2]
[399332055,1766310647671,-500.81615011,0.00015973,2]
[399332056,1766310647681,-334.60508476,0.00015973,2]
[399332057,1766310647690,-500.94315353,0.00015973,2]
[399332058,1766310647699,-500.0,0.00015973,2]
[399332059,1766310647709,-590.29428357,0.00015973,2]
[399332060,1766310647718,-500.51801303,0.00015973,2]
[399332061,1766310647728,-500.56420784,0.00015973,2]
[399332062,1766310647737,-160.18741035,0.00015973,2]
[399332063,1766310647747,-500.35420058,0.00015973,2]
[399332064,1766310647756,-452.23233136,0.00015973,2]
[399332065,1766310647766,-500.65341776,0.00015973,2]
[399332066,1766310647775,-502.67024509,0.00015973,2]
[399332067,1766310647785,-500.90575555,0.00015973,2]
[399332068,1766310647795,-501.49447409,0.00015973,2]
[399332069,1766310647805,-160.18819168,0.00015973,2]
[399332070,1766310647819,-160.18741035,0.00015973,2]
[399332071,1766310647828,-160.18740865,0.00015973,2]
[399332072,1766310647838,-160.18740865,0.00015973,2]
[399332073,1766310647847,-160.18648397,0.00015973,2]
[399332074,1766310647858,-426.64941198,0.00015973,2]
[399332075,1766310647868,-160.18740865,0.00015973,2]
[399332076,1766310647877,-160.18648371,0.00015973,2]
[399332077,1766310647887,-501.07980715,0.00015973,2]
[399332078,1766310647896,-333.50168371,0.00015973,2]
[399332079,1766310647906,-501.73374202,0.00015973,2]
[399332080,1766310647915,-160.18740865,0.00015973,2]
[399332081,1766310647924,-177.38138354,0.00015973,2]
[399332082,1766310647933,-160.18740865,0.00015973,2]
[399332083,1766310647942,-160.18741035,0.00015973,2]
[399332084,1766310647952,-160.18740865,0.00015973,2]
[399332085,1766310647961,-160.18740865,0.00015973,2]
[399332086,1766310647970,-160.18648397,0.00015973,2]
[399332087,1766310647979,-500.61743436,0.00015973,2]
[399332088,1766310647988,-501.15885684,0.00015973,2]
[399332089,1766310647998,-500.30670484,0.00015973,2]
[399332090,1766310648007,-500.96497505,0.00015973,2]
[399332091,1766310648016,-501.02237634,0.00015973,2]
[399332092,1766310648025,-555.97636192,0.00015973,2]
[399332093,1766310648034,-500.4654119,0.00015973,2]
[399332094,1766310648044,-500.77244015,0.00015973,2]
[399332096,1766310648054,-501.45767981,0.00015973,2]
[399332097,1766310648064,-168.18676432,0.00015973,2]
[399332098,1766310648074,-160.18818998,0.00015973,2]
[399332099,1766310648083,-160.18741035,0.00015973,2]
[399332100,1766310648093,-160.18546537,0.00015973,2]
[399332101,1766310648103,-500.67170266,0.00015973,2]
[399332102,1766310648112,-150.17482874,0.00015973,2]
[399332103,1766310648122,-500.86854265,0.00015973,2]
[399332104,1766310648131,-500.52093975,0.00015973,2]
[399332105,1766310648141,-160.18740865,0.00015973,2]
[399332106,1766310648150,-160.176,0.00015973,2]
[399332107,1766310648160,-500.8679768,0.00015973,2]
[399332108,1766310648170,-160.18740865,0.00015973,2]
[399332109,1766310648179,-160.18477965,0.00015973,2]
[399332110,1766310648189,-500.69834491,0.00015973,2]
[399332111,1766310648199,-530.05316157,0.00015973,2]
[399332112,1766310648209,-501.99692439,0.00015973,2]
[399332113,1766310648218,-500.0,0.00015973,2]
[399332114,1766310648228,-500.61638625,0.00015973,2]
[399332115,1766310648238,-500.92329476,0.00015973,2]
[399332116,1766310648247,-577.42409755,0.00015973,2]
[399332117,1766310648256,-501.34405812,0.00015973,2]
[399332118,1766310648267,-505.23381975,0.00015973,2]
[399332119,1766310648277,-543.24024385,0.00015973,2]
[399332120,1766310648286,-168.59717172,0.00015973,2]
[399332121,1766310648297,-150.0,0.00015974,2]
[399332122,1766310648306,-293.176,0.00015975,2]
[399332123,1766310648316,-150.0,0.00015975,2]
[399332124,1766310648325,-500.0,0.00015976,2]
[399332125,1766310648334,-500.0,0.00015976,2]
[399332126,1766310648344,-471.24835976,0.00015976,2]
[399332127,1766310648354,-20885.6177576,0.00015977,2]
[399332128,1766310648363,-208403.7337203,0.00015977,2]
[399332129,1766310648492,-11272.8660978,0.00015977,2]
[399332130,1766310648502,-219.0038073,0.00015977,2]
[399332131,1766310648511,-151.0,0.00015977,2]
[399332132,1766310648521,-217.015063,0.00015977,2]
[399332133,1766310648530,-212.61721,0.00015977,2]
[399332134,1766310648539,-186.129619,0.00015977,2]
[399332135,1766310648548,-151.0,0.00015977,2]
[399332136,1766310648557,-151.0,0.00015977,2]
[399332137,1766310648566,-651.445474,0.00015977,2]
[399332138,1766310648575,-651.445474,0.00015977,2]
[399332139,1766310648584,-651.445474,0.00015977,2]
[399332140,1766310648593,-651.445474,0.00015977,2]
[399332141,1766310648602,-508.949884,0.00015977,2]
[399332142,1766310648612,-508.949884,0.00015977,2]
[399332143,1766310648621,-508.949884,0.00015977,2]
[399332144,1766310648631,-508.949884,0.00015977,2]
[399332145,1766310648640,-151.0,0.00015977,2]
[399332146,1766310648650,-151.0,0.00015977,2]
[399332147,1766310648659,-151.0,0.00015977,2]
[399332148,1766310648669,-151.0,0.00015977,2]
[399332149,1766310648680,-300.454223,0.00015977,2]
[399332150,1766310648690,-193.422615,0.00015977,2]
[399332151,1766310648701,-549.74315086,0.00015983,2]
[399332152,1766310648712,-641.66939908,0.0001599,2]
[399332153,1766310648723,-150.0,0.00015995,2]
[399332154,1766310648735,-500.0,0.00015998,2]
[399332155,1766310648745,-500.0,0.00015998,2]
[399332156,1766310648755,-151.0,0.00015999,2]
[399332157,1766310648764,-500.0,0.00015999,2]
[399332158,1766310648774,-500.0,0.00015999,2]
[399332159,1766310648783,-218.6083497,0.00015999,2]
[399332160,1766310648793,-1000.0,0.00015999,2]
[399332161,1766310648803,-1000.0,0.00015999,2]
[399332162,1766310648818,-1000.0,0.00015999,2]
[399332163,1766310648827,-1000.0,0.00015999,2]
[399332164,1766310648837,-1000.0,0.00015999,2]
[399332165,1766310648848,-1000.0,0.00015999,2]
[399332166,1766310648858,-1000.0,0.00015999,2]
[399332167,1766310648868,-1000.0,0.00015999,2]
[399332168,1766310648879,-1000.0,0.00015999,2]
[399332169,1766310648888,-1000.0,0.00015999,2]
[399332170,1766310648899,-1000.0,0.00015999,2]
[399332171,1766310648908,-1000.0,0.00015999,2]
[399332172,1766310648917,-1000.0,0.00015999,2]
[399332173,1766310648927,-1000.0,0.00015999,2]
[399332174,1766310648935,-1000.0,0.00015999,2]
[399332175,1766310648944,-1000.0,0.00015999,2]
[399332176,1766310648953,-1000.0,0.00015999,2]
[399332177,1766310648962,-1000.0,0.00015999,2]
[399332178,1766310648971,-1000.0,0.00015999,2]
[399332179,1766310648981,-1000.0,0.00015999,2]
[399332180,1766310648990,-1000.0,0.00015999,2]
[399332181,1766310649000,-1000.0,0.00015999,2]
[399332182,1766310649009,-1000.0,0.00015999,2]
[399332183,1766310649018,-1000.0,0.00015999,2]
[399332184,1766310649027,-1000.0,0.00015999,2]
[399332185,1766310649036,-1000.0,0.00015999,2]
[399332186,1766310649045,-1000.0,0.00015999,2]
[399332187,1766310649054,-1036.30235592,0.00015999,2]
[399332188,1766310649064,-500.0,0.00015999,2]
[399332189,1766310649073,-500.0,0.00015999,2]
[399332190,1766310649083,-500.0,0.00015999,2]
[399332191,1766310649092,-219.76976975,0.00015999,2]
[399332192,1766310649101,-500.0,0.00015999,2]
[399332193,1766310649110,-54962.35718649,0.00016,4]
[399332194,1766310649120,-859.57904948,0.00016,2]
[399332195,1766310649130,-1277336.47035423,0.00016,4]
[399332196,1766310650103,-595.49318903,0.00016,4]
[399332197,1766310650114,-457.76542562,0.00016,4]
[399332198,1766310650126,-597.61849702,0.00016,4]
[399332199,1766310650137,-10999.09543311,0.00016,4]
[399332200,1766310650152,-2335.08328914,0.00016,4]
[399332201,1766310650163,-1632.3679,0.00016,4]
[399332202,1766310650174,-384.60801368,0.00016,4]
[399332203,1766310650185,-67617.43159549,0.00016,4]
[399332204,1766310650199,-53807.57380998,0.00016,4]
[399332205,1766310650212,-2416.06200004,0.00016,4]
[399332206,1766310650373,-913.53,0.00016,4]
[399332207,1766310650395,-1540.0,0.00016,4]
[399332208,1766310650527,-1428.0,0.00012804,2]
[399332209,1766310650536,-216.30072536,0.00013273,2]
[399332210,1766310650546,-4803.0,0.00014523,2]
[399332211,1766310650555,-124122.3664341,0.00016,4]
[399332212,1766310650564,-550.54433387,0.00016,2]
[399332213,1766310650574,-151.6,0.00016,2]
[399332214,1766310650582,-151.0,0.00016,2]
[399332215,1766310650591,-1000.0,0.00016,2]
[399332216,1766310650600,-1000.0,0.00016,2]
[399332217,1766310650609,-1000.0,0.00016,2]
[399332218,1766310650617,-1000.0,0.00016,2]
[399332219,1766310650626,-1000.0,0.00016,2]
[399332220,1766310650635,-1000.0,0.00016,2]
[399332221,1766310650644,-1000.0,0.00016,2]
[399332222,1766310650653,-1000.0,0.00016,2]
[399332223,1766310650662,-486.666,0.00016,2]
[399332224,1766310650671,-1000.0,0.00016,2]
[399332225,1766310650679,-1000.0,0.00016,2]
[399332226,1766310650689,-794.454,0.00016,2]
[399332227,1766310650698,-151.0,0.00016,2]
[399332228,1766310650707,-151.0,0.00016,2]
[399332229,1766310650715,-651.445474,0.00016,2]
[399332230,1766310650725,-651.445474,0.00016,2]
[399332231,1766310650734,-651.445474,0.00016,2]
[399332232,1766310650744,-651.445464,0.00016,2]
[399332233,1766310650755,-508.949884,0.00016,2]
[399332234,1766310650765,-508.949884,0.00016,2]
[399332235,1766310650775,-508.949884,0.00016,2]
[399332236,1766310650785,-508.949894,0.00016,2]
[399332237,1766310650794,-151.0,0.00016,2]
[399332238,1766310650803,-151.0,0.00016,2]
[399332239,1766310650817,-4000.0,0.00016,2]
[399332240,1766310650826,-1473.89,0.00016001,2]
[399332241,1766310650835,-150.0,0.0001601,2]
[399332242,1766310650844,-3000.0,0.00016012,2]
[399332243,1766310650854,-1189.47462246,0.00016012,2]
[399332244,1766310650863,-3000.0,0.00016012,2]
[399332245,1766310650873,-1057.65481763,0.00016012,2]
[399332246,1766310650884,-1454.77156402,0.00016012,2]
[399332247,1766310650893,-150.0,0.00016016,2]
[399332248,1766310650902,-150.0,0.00016016,2]
[399332249,1766310650912,-150.0,0.00016016,2]
[399332250,1766310650923,-150.0,0.00016016,2]
[399332251,1766310650932,-3292.0,0.00016026,2]
[399332252,1766310650942,-150.0,0.00016047,2]
[399332253,1766310650951,-150.0,0.00016052,2]
[399332254,1766310650960,-862.0,0.00016056,2]
[399332255,1766310650969,-150.0,0.00016056,2]
[399332256,1766310650979,-150.0,0.00016064,2]
[399332257,1766310650989,-150.0,0.00016066,2]
[399332258,1766310650998,-500.0,0.00016071,2]
[399332259,1766310651007,-227.01,0.00016072,2]
[399332260,1766310651016,-5007.0,0.00016075,2]
[399332261,1766310651025,-150.0,0.00016083,2]
[399332262,1766310651034,-150.0,0.00016097,2]
[399332263,1766310651044,-150.0,0.00016097,2]
[399332264,1766310651053,-1224.28442056,0.00016111,2]
[399332265,1766310651062,-150.0,0.00016113,2]
[399332266,1766310651072,-150.0,0.00016119,2]
[399332267,1766310651084,-150.0,0.00016137,2]
[399332268,1766310651094,-150.0,0.00016137,2]
[399332269,1766310651104,-150.0,0.00016137,2]
[399332270,1766310651251,-150.0,0.00016137,2]
[399332271,1766310651262,-150.0,0.00016137,2]
[399332272,1766310651273,-150.0,0.00016137,2]
[399332273,1766310651282,-150.0,0.00016137,2]
[399332274,1766310651292,-150.0,0.00016155,2]
[399332275,1766310651302,-150.0,0.00016161,2]
[399332276,1766310651311,-150.0,0.00016177,2]
[399332277,1766310651321,-150.0,0.00016177,2]
[399332278,1766310651330,-862.0,0.00016182,2]
[399332279,1766310651341,-150.0,0.00016191,2]
[399332280,1766310651352,-150.0,0.00016208,2]
[399332281,1766310651361,-862.0,0.00016208,2]
[399332282,1766310651370,-150.0,0.0001621,2]
[399332283,1766310651379,-150.0,0.00016218,2]
[399332284,1766310651389,-150.0,0.00016222,2]
[399332285,1766310651399,-686.1767961,0.00016223,2]
[399332286,1766310651412,-150.0,0.00016227,2]
[399332287,1766310651421,-862.0,0.0001624,2]
[399332288,1766310651430,-150.0,0.00016258,2]
[399332289,1766310651439,-150.0,0.00016258,2]
[399332290,1766310651448,-150.0,0.00016258,2]
[399332291,1766310651458,-150.0,0.00016258,2]
[399332292,1766310651471,-150.0,0.00016263,2]
[399332293,1766310651481,-1473.89,0.00016275,2]
[399332294,1766310651491,-150.0,0.00016279,2]
[399332295,1766310651501,-202.6395923,0.00016291,2]
[399332296,1766310651511,-217.15233878,0.00016291,2]
[399332297,1766310651521,-595.37131296,0.00016291,2]
[399332298,1766310651531,-150.0,0.00016299,2]
[399332299,1766310651540,-150.0,0.000163,2]
[399332300,1766310651550,-150.0,0.00016307,2]
[399332301,1766310651560,-150.0,0.00016307,2]
[399332302,1766310651569,-862.0,0.00016318,2]
[399332303,1766310651579,-150.0,0.00016336,2]
[399332304,1766310651588,-862.0,0.00016338,2]
[399332305,1766310651598,-150.0,0.00016339,2]
[399332306,1766310651608,-150.0,0.00016339,2]
[399332307,1766310651617,-150.0,0.00016349,2]
[399332308,1766310651626,-150.0,0.00016355,2]
[399332309,1766310651636,-150.0,0.00016372,2]
[399332310,1766310651645,-10955.28690622,0.00016374,2]
[399332311,1766310651655,-397.16543724,0.00016377,2]
[399332312,1766310651664,-150.0,0.0001638,2]
[399332313,1766310651674,-150.0,0.00016392,2]
[399332314,1766310651683,-19860.72422432,0.00016395,2]
[399332315,1766310651693,-1172.42466185,0.000164,2]
[399332316,1766310651702,-788.26081965,0.000164,2]
[399332317,1766310651712,-862.0,0.00016403,2]
[399332318,1766310651721,-150.0,0.00016404,2]
[399332319,1766310651731,-150.0,0.00016408,2]
[399332320,1766310651740,-150.0,0.0001642,2]
[399332321,1766310651750,-150.0,0.0001642,2]
[399332322,1766310651760,-150.0,0.0001642,2]
[399332323,1766310651769,-150.0,0.0001642,2]
[399332324,1766310651779,-150.0,0.0001642,2]
[399332325,1766310651788,-259.357152,0.00016438,2]
[399332326,1766310651798,-151.0,0.00016438,2]
[399332327,1766310651809,-151.0,0.00016438,2]
[399332328,1766310651819,-1819.9960677,0.00016438,2]
[399332329,1766310651828,-1819.9960677,0.00016438,2]
[399332330,1766310651838,-1819.9960677,0.00016438,2]
[399332331,1766310651847,-1819.9960677,0.00016438,2]
[399332332,1766310651856,-1819.9960677,0.00016438,2]
[399332333,1766310651865,-1819.9960677,0.00016438,2]
[399332334,1766310651875,-1819.9960677,0.00016438,2]
[399332335,1766310651883,-1819.9960677,0.00016438,2]
[399332336,1766310651893,-1819.9960677,0.00016438,2]
[399332337,1766310651903,-1819.9960677,0.00016438,2]
[399332338,1766310651912,-1819.9960677,0.00016438,2]
[399332339,1766310651922,-1819.9960677,0.00016438,2]
[399332340,1766310651931,-1819.9960677,0.00016438,2]
[399332341,1766310651941,-1819.9960677,0.00016438,2]
[399332342,1766310651951,-1819.9960677,0.00016438,2]
[399332343,1766310651960,-1819.9960677,0.00016438,2]
[399332344,1766310651969,-1819.9960677,0.00016438,2]
[399332345,1766310651979,-1819.9960677,0.00016438,2]
[399332346,1766310651988,-1819.9960677,0.00016438,2]
[399332347,1766310651998,-1819.9960677,0.00016438,2]
[399332348,1766310652007,-1819.9960677,0.00016438,2]
[399332349,1766310652017,-1819.9960677,0.00016438,2]
[399332350,1766310652027,-1819.9960677,0.00016438,2]
[399332351,1766310652036,-1819.9960677,0.00016438,2]
[399332352,1766310652046,-1819.9960677,0.00016438,2]
[399332353,1766310652055,-1819.9960677,0.00016438,2]
[399332354,1766310652066,-1819.9960677,0.00016438,2]
[399332355,1766310652077,-1819.9960677,0.00016438,2]
[399332356,1766310652089,-1819.9960677,0.00016438,2]
[399332357,1766310652099,-1819.9960677,0.00016438,2]
[399332358,1766310652109,-1819.9960677,0.00016438,2]
[399332359,1766310652119,-1819.9960677,0.00016438,2]
[399332360,1766310652129,-1819.9960677,0.00016438,2]
[399332361,1766310652139,-1819.9960677,0.00016438,2]
[399332362,1766310652149,-1819.9960677,0.00016438,2]
[399332363,1766310652159,-1819.9960677,0.00016438,2]
[399332364,1766310652168,-1819.9960677,0.00016438,2]
[399332365,1766310652178,-1819.9960677,0.00016438,2]
[399332366,1766310652188,-1819.9960677,0.00016438,2]
[399332367,1766310652197,-1819.9960677,0.00016438,2]
[399332368,1766310652207,-1819.9960677,0.00016438,2]
[399332369,1766310652216,-1819.9960677,0.00016438,2]
[399332370,1766310652226,-1819.9960677,0.00016438,2]
[399332371,1766310652235,-1819.9960677,0.00016438,2]
[399332372,1766310652245,-1819.9960677,0.00016438,2]
[399332373,1766310652254,-1819.9960677,0.00016438,2]
[399332374,1766310652264,-1819.9960677,0.00016438,2]
[399332375,1766310652274,-1819.9960677,0.00016438,2]
[399332376,1766310652283,-1819.9960677,0.00016438,2]
[399332377,1766310652294,-1819.9960677,0.00016438,2]
[399332378,1766310652304,-1819.9960677,0.00016438,2]
[399332379,1766310652314,-1819.9960677,0.00016438,2]
[399332380,1766310652323,-1819.9960677,0.00016438,2]
[399332381,1766310652333,-1819.9960677,0.00016438,2]
[399332382,1766310652343,-1819.9960677,0.00016438,2]
[399332383,1766310652352,-1819.9960677,0.00016438,2]
[399332384,1766310652362,-1819.9960677,0.00016438,2]
[399332385,1766310652371,-1819.9960677,0.00016438,2]
[399332387,1766310652382,-1819.9960677,0.00016438,2]
[399332388,1766310652392,-1819.9960677,0.00016438,2]
[399332389,1766310652403,-450.0,0.00016438,2]
[399332390,1766310652413,-9548.72,0.00016438,2]
[399332391,1766310652422,-234.475349,0.00016438,2]
[399332392,1766310652432,-150.0,0.00016444,2]
[399332393,1766310652442,-603.0,0.00016447,2]
[399332394,1766310652452,-150.0,0.00016452,2]
[399332395,1766310652462,-150.0,0.00016461,2]
[399332396,1766310652472,-150.0,0.00016477,2]
[399332397,1766310652482,-150.0,0.0001648,2]
[399332398,1766310652491,-862.0,0.00016485,2]
[399332399,1766310652501,-500.0,0.00016485,2]
[399332400,1766310652510,-500.0,0.00016485,2]
[399332401,1766310652520,-862.0,0.00016486,2]
[399332402,1766310652530,-150.0,0.00016491,2]
[399332403,1766310652540,-151.34,0.00016495,2]
[399332404,1766310652549,-862.0,0.00016499,2]
[399332405,1766310652559,-150.0,0.00016501,2]
[399332406,1766310652570,-150.0,0.00016501,2]
[399332407,1766310652580,-150.0,0.00016501,2]
[399332408,1766310652591,-150.0,0.00016501,2]
[399332409,1766310652603,-150.0,0.00016516,2]
[399332410,1766310652612,-1000.0,0.00016521,2]
[399332411,1766310652622,-862.0,0.00016522,2]
[399332412,1766310652632,-150.0,0.00016541,2]
[399332413,1766310652642,-1474.02514096,0.00016548,2]
[399332414,1766310652652,-150.0,0.0001655,2]
[399332415,1766310652661,-150.0,0.00016553,2]
[399332416,1766310652671,-3500.0,0.0001656,2]
[399332417,1766310652681,-3500.0,0.0001656,2]
[399332418,1766310652691,-150.0,0.00016562,2]
[399332419,1766310652701,-150.0,0.00016562,2]
[399332420,1766310652711,-150.0,0.00016562,2]
[399332421,1766310652721,-151.0,0.00016564,2]
[399332422,1766310652731,-311.1,0.00016564,2]
[399332423,1766310652741,-151.0,0.00016564,2]
[399332424,1766310652750,-277.35679052,0.00016564,2]
[399332425,1766310652760,-150.0,0.00016582,2]
[399332426,1766310652769,-150.0,0.00016582,2]
[399332427,1766310652779,-232.63999983,0.00016583,2]
[399332428,1766310652788,-150.0,0.00016589,2]
[399332430,1766310652798,-150.0,0.00016598,2]
[399332431,1766310652810,-235.58592581,0.000166,2]
[399332432,1766310652820,-5007.0,0.00016605,2]
[399332433,1766310652829,-603.0,0.00016619,2]
[399332434,1766310652839,-150.0,0.00016622,2]
[399332435,1766310652849,-150.0,0.00016625,2]
[399332436,1766310652859,-150.0,0.00016632,2]
[399332437,1766310652869,-150.0,0.00016647,2]
[399332438,1766310652879,-150.0,0.00016647,2]
[399332439,1766310652889,-150.0,0.00016661,2]
[399332440,1766310652898,-150.0,0.00016663,2]
[399332441,1766310652907,-150.0,0.00016663,2]
[399332442,1766310652917,-174.03907494,0.00016684,2]
[399332443,1766310652926,-150.0,0.00016695,2]
[399332444,1766310652935,-150.0,0.00016697,2]
[399332445,1766310652945,-150.0,0.00016703,2]
[399332446,1766310652954,-150.0,0.00016703,2]
[399332447,1766310652963,-150.0,0.00016703,2]
[399332448,1766310652972,-150.0,0.00016703,2]
[399332449,1766310652982,-176.7,0.00016706,2]
[399332450,1766310652991,-176.7,0.00016715,2]
[399332451,1766310653000,-1000.0,0.00016715,2]
[399332452,1766310653009,-150.0,0.00016732,2]
[399332453,1766310653018,-150.0,0.00016733,2]
[399332454,1766310653028,-603.0,0.00016742,2]
[399332455,1766310653037,-150.0,0.00016744,2]
[399332456,1766310653046,-150.0,0.00016744,2]
[399332457,1766310653056,-150.0,0.00016744,2]
[399332458,1766310653065,-150.0,0.00016744,2]
[399332459,1766310653074,-174.04,0.00016752,2]